bitfinex/quotes_BTCUSD_20250313
["timestamp","ask_amount","ask_price","bid_price","bid_amount"]
[1741901711468,0.01941771,80726.0,80725.0,0.386941]
[1741901711728,0.0003382,80729.0,80728.0,0.260132]
[1741901711977,2e-07,80729.0,80728.0,0.684932]
[1741901712663,4e-07,80731.0,80730.0,0.012386]
[1741901712908,4e-07,80731.0,80730.0,0.14012432]
[1741901713145,4e-07,80731.0,80730.0,0.44012432]
[1741901713364,4e-07,80731.0,80730.0,0.438886]
[1741901713595,4e-07,80731.0,80730.0,0.45342685]
[1741901714059,4e-07,80746.0,80745.0,0.260077]
[1741901714271,4e-07,80746.0,80745.0,0.532957]
[1741901714447,4e-07,80746.0,80745.0,0.832957]
[1741901715096,4e-07,80746.0,80745.0,0.85606059]
[1741901715305,4e-07,80746.0,80745.0,0.85617819]
[1741901715509,4e-07,80746.0,80745.0,0.86217819]
[1741901715720,4e-07,80746.0,80745.0,0.87671904]
[1741901716136,4e-07,80746.0,80745.0,0.88171904]
[1741901716389,4e-07,80761.0,80760.0,0.260029]
[1741901716645,4e-07,80761.0,80760.0,0.532609]
[1741901716855,4e-07,80765.0,80764.0,0.341816]
[1741901717271,4e-07,80765.0,80764.0,0.641816]
[1741901717694,4e-07,80765.0,80764.0,0.70593844]
[1741901718334,4e-07,80765.0,80764.0,0.71193844]
[1741901719161,4e-07,80765.0,80764.0,0.71793844]
[1741901719375,4e-07,80775.0,80772.0,0.25999]
[1741901719589,4e-07,80775.0,80774.0,0.608384]
[1741901719797,2.8e-07,80787.0,80786.0,0.259945]
[1741901720005,0.0003382,80790.0,80789.0,0.259935]
[1741901720006,4.8e-07,80790.0,80789.0,0.259935]
[1741901720262,4.8e-07,80790.0,80789.0,0.402575]
[1741901720489,4.8e-07,80790.0,80789.0,0.702575]
[1741901720700,4.8e-07,80790.0,80789.0,0.79663345]
[1741901721769,4.8e-07,80790.0,80789.0,0.80263345]
[1741901721977,2.8e-07,80798.0,80797.0,0.259909]
[1741901722183,2.8e-07,80798.0,80797.0,0.559909]
[1741901723443,2.8e-07,80798.0,80797.0,0.565909]
[1741901724054,2.8e-07,80798.0,80797.0,0.571909]
[1741901724677,2.8e-07,80798.0,80797.0,0.265909]
[1741901724884,2.8e-07,80798.0,80797.0,0.408629]
[1741901725092,2.8e-07,80798.0,80797.0,0.708629]
[1741901725296,2.8e-07,80798.0,80797.0,0.714629]
[1741901725701,2.8e-07,80798.0,80797.0,0.702629]
[1741901726135,2.8e-07,80798.0,80797.0,0.708629]
[1741901726311,2.8e-07,80798.0,80797.0,0.702629]
[1741901726820,2.8e-07,80798.0,80797.0,0.707629]
[1741901727012,2.8e-07,80798.0,80797.0,0.713629]
[1741901727562,2.8e-07,80798.0,80797.0,0.707629]
[1741901728553,2.8e-07,80798.0,80797.0,0.713629]
[1741901730195,2.8e-07,80798.0,80797.0,0.707629]
[1741901730602,2.8e-07,80798.0,80797.0,0.713629]
[1741901731415,2.8e-07,80798.0,80797.0,0.707629]
[1741901731651,2.8e-07,80798.0,80797.0,0.708629]
[1741901731854,2.8e-07,80798.0,80797.0,0.714629]
[1741901735233,0.00100097,80798.0,80797.0,0.714629]
[1741901735475,0.00100097,80798.0,80797.0,0.708629]
[1741901735708,0.00100097,80798.0,80797.0,0.259909]
[1741901735914,0.00100097,80798.0,80797.0,0.408429]
[1741901736624,0.00100097,80798.0,80797.0,0.414429]
[1741901737202,0.00100097,80798.0,80797.0,0.408429]
[1741901737398,0.00100097,80798.0,80797.0,0.414429]
[1741901738222,0.0003378,80812.0,80797.0,0.414429]
[1741901738223,0.07519979,80812.0,80807.0,0.247501]
[1741901738434,0.07519979,80812.0,80807.0,0.259876]
[1741901738762,0.01384426,80811.0,80807.0,0.259876]
[1741901739085,0.29485,80814.0,80807.0,0.259876]
[1741901739541,0.29485,80814.0,80808.0,0.247498]
[1741901739767,0.247487,80813.0,80807.0,0.012375]
[1741901739992,0.02621826,80813.0,80807.0,0.004]
[1741901740203,0.02621826,80813.0,80807.0,0.006]
[1741901740465,0.26133026,80813.0,80807.0,0.259876]
[1741901740669,0.26133026,80813.0,80808.0,0.003]
[1741901740867,0.0001688,80811.0,80808.0,0.003]
[1741901741255,0.0001688,80811.0,80803.0,0.012375]
[1741901741256,0.0944428,80811.0,80802.0,0.247516]
[1741901741466,0.01384426,80810.0,80807.0,0.003]
[1741901741867,0.01939762,80809.0,80808.0,0.001]
[1741901742073,0.26689462,80809.0,80808.0,0.001]
[1741901742278,0.012375,80808.0,80807.0,0.003]
[1741901742483,0.35595984,80808.0,80807.0,0.003]
[1741901742683,0.012375,80805.0,80802.0,0.002]
[1741901742894,0.247518,80802.0,80797.0,0.2602456]
[1741901743079,0.01384426,80801.0,80797.0,0.2602456]
[1741901743492,0.140276,80798.0,80797.0,0.0003376]
[1741901743923,0.49764362,80798.0,80797.0,0.0003376]
[1741901744765,0.49764362,80798.0,80797.0,0.0043376]
[1741901745589,0.49764362,80798.0,80797.0,0.0083376]
[1741901745802,0.49764362,80798.0,80797.0,0.0043376]
[1741901746314,0.49764362,80798.0,80797.0,0.0063376]
[1741901746586,0.51704504,80798.0,80797.0,0.0063376]
[1741901746971,0.51704504,80798.0,80797.0,0.0023376]
[1741901747402,0.51704504,80798.0,80797.0,0.0053376]
[1741901748214,0.51704504,80798.0,80797.0,0.0033376]
[1741901748979,0.51704504,80798.0,80797.0,0.0003376]
[1741901749380,0.51704504,80798.0,80797.0,0.0023376]
[1741901750248,0.42366904,80798.0,80797.0,0.0147136]
[1741901750451,0.37676904,80798.0,80797.0,0.0147136]
[1741901750652,0.37676904,80798.0,80797.0,0.0157136]
[1741901750859,0.37676904,80798.0,80797.0,0.0147136]
[1741901751840,0.37676904,80798.0,80797.0,0.0167136]
[1741901752678,0.37676904,80798.0,80797.0,0.0147136]
[1741901753097,0.37676904,80798.0,80797.0,0.0167136]
[1741901753470,0.35736762,80798.0,80797.0,0.0147136]
[1741901753870,0.35736762,80798.0,80797.0,0.0177136]
[1741901754516,0.35736762,80798.0,80797.0,0.0147136]
[1741901754752,0.35736762,80798.0,80797.0,0.0127136]
[1741901754939,0.35736762,80798.0,80797.0,0.0147136]
[1741901756576,0.37676811,80798.0,80797.0,0.0187136]
[1741901759563,0.37676811,80798.0,80797.0,0.0063376]
[1741901759564,0.62429811,80798.0,80797.0,0.0063376]
[1741901760967,0.63667411,80798.0,80797.0,0.0063376]
[1741901762355,0.62429811,80798.0,80797.0,0.0063376]
[1741901763591,0.63667411,80798.0,80797.0,0.0063376]
[1741901763792,0.61727362,80798.0,80797.0,0.0063376]
[1741901765229,0.69657362,80798.0,80797.0,0.0063376]
[1741901765656,0.69157362,80798.0,80797.0,0.0063376]
[1741901766302,0.69157362,80798.0,80797.0,0.0023376]
[1741901766739,0.69157362,80798.0,80797.0,0.0053376]
[1741901766943,0.71097588,80798.0,80797.0,0.0053376]
[1741901767144,0.71097588,80798.0,80797.0,0.0033376]
[1741901767572,1.01097588,80798.0,80797.0,0.0053376]
[1741901772353,1.05637588,80798.0,80797.0,0.0053376]
[1741901772825,1.07091673,80798.0,80797.0,0.0053376]
[1741901773229,2.16621673,80798.0,80797.0,0.0023376]
[1741901773430,2.15181447,80798.0,80797.0,0.0023376]
[1741901773646,2.15181447,80798.0,80797.0,0.0043376]
[1741901773865,2.15181447,80798.0,80797.0,0.0023376]
[1741901774063,2.27177536,80798.0,80797.0,0.0023376]
[1741901775233,2.27177536,80798.0,80797.0,0.0003376]
[1741901775623,6.90417536,80798.0,80797.0,0.0003376]
[1741901776035,4.34009536,80798.0,80797.0,0.0003376]
[1741901776449,4.34009536,80798.0,80773.0,0.01238]
[1741901776450,0.247597,80777.0,80771.0,0.2444462]
[1741901776645,0.2476,80776.0,80771.0,0.2568262]
[1741901776881,0.26108348,80776.0,80771.0,0.2568262]
[1741901777087,0.03288894,80776.0,80772.0,0.259987]
[1741901777427,0.03288894,80776.0,80773.0,0.259985]
[1741901777658,0.03288894,80776.0,80772.0,0.01238]
[1741901777869,0.04947253,80776.0,80772.0,0.01238]
[1741901778085,0.04947253,80776.0,80773.0,0.247605]
[1741901779273,0.04947253,80776.0,80772.0,0.01538]
[1741901779499,0.04947253,80776.0,80773.0,0.005]
[1741901780410,0.29707353,80776.0,80773.0,0.005]
[1741901780675,0.29707353,80776.0,80773.0,0.008]
[1741901780901,0.247603,80775.0,80773.0,0.005]
[1741901781160,0.247603,80775.0,80773.0,0.007]
[1741901781446,0.247603,80775.0,80773.0,0.002]
[1741901781686,0.01348348,80774.0,80773.0,0.002]
[1741901781937,0.247607,80773.0,80772.0,0.005]
[1741901782174,0.247613,80772.0,80767.0,0.247624]
[1741901782417,0.247615,80771.0,80766.0,0.012381]
[1741901782657,0.259999,80769.0,80764.0,0.079]
[1741901783143,0.0134521,80768.0,80764.0,0.079]
[1741901783382,0.0134521,80768.0,80764.0,0.07911756]
[1741901783863,0.012381,80765.0,80764.0,0.00011756]
[1741901784333,0.02581573,80765.0,80764.0,0.00011756]
[1741901784760,0.32581573,80765.0,80764.0,0.00011756]
[1741901786239,0.3998365,80765.0,80764.0,0.00011756]
[1741901786483,2.1627365,80765.0,80764.0,0.00011756]
[1741901786751,2.28269739,80765.0,80764.0,0.00011756]
[1741901786995,2.30210698,80765.0,80764.0,0.00045516]
[1741901787643,2.31664783,80765.0,80764.0,0.00045516]
[1741901788132,2.18214609,80765.0,80764.0,0.00045516]
[1741901788385,0.4581995,80765.0,80764.0,0.00045516]
[1741901788581,0.260053,80753.0,80747.0,0.24586296]
[1741901788845,0.260053,80753.0,80747.0,0.24592466]
[1741901789329,0.03047204,80752.0,80747.0,0.24592466]
[1741901790552,0.03047204,80752.0,80747.0,0.24792466]
[1741901790775,0.03047204,80752.0,80747.0,0.25392466]
[1741901791223,0.03047204,80752.0,80747.0,0.24792466]
[1741901791432,0.03047204,80752.0,80747.0,0.25392466]
[1741901791852,0.03047204,80752.0,80747.0,0.25192466]
[1741901792304,0.03047204,80752.0,80747.0,0.25392466]
[1741901793897,0.01106183,80752.0,80749.0,0.247681]
[1741901794103,0.01106183,80752.0,80750.0,0.012383]
[1741901794314,0.012382,80756.0,80752.0,0.247671]
[1741901794667,0.02189469,80756.0,80752.0,0.247671]
[1741901795503,0.00951269,80756.0,80752.0,0.260054]
[1741901795711,0.26004,80757.0,80752.0,0.260054]
[1741901795967,0.260043,80756.0,80751.0,0.012383]
[1741901796962,0.01940991,80755.0,80752.0,0.001]
[1741901797404,0.01940991,80755.0,80752.0,0.006]
[1741901797588,0.01940991,80755.0,80754.0,0.012383]
[1741901798040,0.01940991,80755.0,80752.0,0.248669]
[1741901798275,0.01940991,80755.0,80752.0,0.001]
[1741901798667,0.01940991,80755.0,80752.0,0.005]
[1741901799431,0.26707391,80755.0,80752.0,0.005]
[1741901799817,0.26707391,80755.0,80752.0,0.006]
[1741901800033,0.27945691,80755.0,80752.0,0.006]
[1741901800234,0.01940991,80755.0,80752.0,0.018383]
[1741901801778,0.01940991,80755.0,80752.0,0.006]
[1741901801983,0.27945691,80755.0,80752.0,0.006]
[1741901802740,0.012383,80753.0,80752.0,0.006]
[1741901803591,0.02332095,80753.0,80752.0,0.006]
[1741901803817,0.02332095,80753.0,80752.0,0.005]
[1741901804025,0.012384,80749.0,80747.0,0.0003995]
[1741901804373,0.247684,80748.0,80747.0,0.0003995]
[1741901804596,0.25862195,80748.0,80747.0,0.0003995]
[1741901805545,0.25862195,80748.0,80747.0,0.0063995]
[1741901805932,0.25862195,80748.0,80747.0,0.0093995]
[1741901806132,0.27100595,80748.0,80747.0,0.0093995]
[1741901807442,0.27100595,80748.0,80747.0,0.0033995]
[1741901807654,0.29041723,80748.0,80747.0,0.0033995]
[1741901807859,0.29041723,80748.0,80747.0,0.0093995]
[1741901812147,0.27820213,80748.0,80747.0,0.0093995]
[1741901820743,0.03051813,80748.0,80747.0,0.0093995]
[1741901822239,0.01110685,80748.0,80747.0,0.0093995]
[1741901822654,0.00906746,80748.0,80747.0,0.0093995]
[1741901822889,0.247678,80750.0,80747.0,0.0093995]
[1741901823139,0.00906746,80748.0,80747.0,0.2570865]
[1741901823390,0.02476001,80753.0,80747.0,0.0093995]
[1741901823588,0.00906746,80748.0,80747.0,0.0093995]
[1741901823789,0.247683,80749.0,80747.0,0.0063995]
[1741901824006,0.00906746,80748.0,80747.0,0.0063995]
[1741901824419,0.00906746,80748.0,80747.0,0.0093995]
[1741901825517,0.00906746,80748.0,80747.0,0.0063995]
[1741901827101,0.00906746,80748.0,80747.0,0.0093995]
[1741901829530,0.00906746,80748.0,80744.0,0.247694]
[1741901829752,0.00906746,80748.0,80744.0,0.24779656]
[1741901829978,0.25675246,80748.0,80744.0,0.00010256]
[1741901830476,0.247689,80747.0,80744.0,0.00010256]
[1741901830716,0.247693,80745.0,80744.0,0.00010256]
[1741901830950,0.247692,80746.0,80744.0,0.00910256]
[1741901831184,0.00906746,80745.0,80744.0,0.00910256]
[1741901831348,0.00906746,80745.0,80744.0,0.00610256]
[1741901831616,0.00755622,80745.0,80744.0,0.00910256]
[1741901831742,0.00755622,80745.0,80744.0,0.00310256]
[1741901832170,0.00755622,80745.0,80744.0,0.00910256]
[1741901832372,0.00755622,80745.0,80744.0,0.00310256]
[1741901832579,0.00755622,80745.0,80742.0,0.23139172]
[1741901832805,0.24769,80747.0,80742.0,0.23139172]
[1741901833009,0.00750396,80744.0,80742.0,0.23139172]
[1741901833208,0.24769,80747.0,80742.0,0.23139172]
[1741901833424,0.247691,80746.0,80741.0,0.012385]
[1741901833644,0.247695,80745.0,80739.0,0.247709]
[1741901833854,0.247695,80745.0,80744.0,0.001]
[1741901833855,0.248695,80745.0,80744.0,0.001]
[1741901834098,0.001,80745.0,80744.0,0.005]
[1741901834315,0.00750396,80745.0,80744.0,0.004]
[1741901834559,0.00750396,80745.0,80742.0,0.001]
[1741901834796,0.247698,80744.0,80739.0,0.012385]
[1741901835003,0.25519896,80745.0,80739.0,0.264094]
[1741901835228,0.248695,80745.0,80744.0,0.001]
[1741901835432,0.247695,80745.0,80739.0,0.264094]
[1741901835680,0.246395,80745.0,80740.0,0.247707]
[1741901835904,0.247395,80745.0,80742.0,0.001]
[1741901836808,0.247395,80745.0,80742.0,0.004]
[1741901837057,0.02041197,80745.0,80742.0,0.004]
[1741901837596,0.01941197,80745.0,80742.0,0.003]
[1741901837810,0.01941197,80745.0,80744.0,0.0003378]
[1741901838079,0.02041197,80745.0,80744.0,0.0053378]
[1741901838559,0.01941197,80745.0,80744.0,0.0003378]
[1741901838834,0.02041197,80745.0,80744.0,0.0003378]
[1741901839029,0.01941197,80745.0,80744.0,0.0003378]
[1741901839203,0.01941197,80745.0,80744.0,0.0053378]
[1741901839412,0.02041197,80745.0,80744.0,0.0053378]
[1741901839972,0.02041197,80745.0,80744.0,0.2570338]
[1741901840175,0.02041197,80745.0,80744.0,0.2694178]
[1741901842136,0.02041197,80745.0,80744.0,0.3456178]
[1741901848585,0.001,80745.0,80744.0,0.3456178]
[1741901850198,0.0011689,80745.0,80744.0,0.3456178]
[1741901863309,0.0011689,80745.0,80744.0,0.2694178]
[1741901872835,0.06210615,80753.0,80749.0,0.247679]
[1741901872957,0.06210615,80753.0,80749.0,0.260063]
[1741901873158,0.00746241,80752.0,80750.0,0.247676]
[1741901873384,0.00746241,80752.0,80751.0,0.012383]
[1741901873610,0.2478299,80756.0,80751.0,0.260056]
[1741901873760,0.00746241,80752.0,80751.0,0.260056]
[1741901874185,0.2478299,80756.0,80751.0,0.260056]
[1741901874437,0.00746241,80755.0,80751.0,0.260056]
[1741901875130,0.00746241,80755.0,80753.0,0.260051]
[1741901875303,0.00750371,80755.0,80751.0,0.012383]
[1741901875539,0.00750371,80755.0,80751.0,0.017383]
[1741901875740,0.00750371,80755.0,80751.0,0.012383]
[1741901875947,0.00750371,80755.0,80751.0,0.013383]
[1741901876575,0.00750371,80755.0,80751.0,0.261051]
[1741901876868,0.00750371,80755.0,80751.0,0.266051]
[1741901879609,0.00750371,80755.0,80751.0,0.018383]
[1741901879843,0.00750371,80755.0,80752.0,0.247671]
[1741901880482,0.00750371,80755.0,80751.0,0.018383]
[1741901881072,0.00750371,80755.0,80751.0,0.017383]
[1741901881289,0.00750371,80755.0,80752.0,0.001]
[1741901881695,0.00750371,80755.0,80751.0,0.017383]
[1741901881849,0.00750371,80755.0,80751.0,0.012383]
[1741901882744,0.00705244,80755.0,80752.0,0.005]
[1741901882967,0.00705244,80755.0,80751.0,0.013383]
[1741901883170,0.00705244,80755.0,80751.0,0.018383]
[1741901883357,0.00705244,80755.0,80751.0,0.266055]
[1741901883879,0.00705244,80755.0,80751.0,0.018383]
[1741901884105,0.00705244,80755.0,80751.0,0.266056]
[1741901884407,0.00705244,80755.0,80751.0,0.265056]
[1741901884609,0.00705244,80755.0,80752.0,0.001]
[1741901885024,0.00705244,80755.0,80751.0,0.265056]
[1741901885236,0.00722134,80755.0,80751.0,0.265056]
[1741901885391,0.00722134,80755.0,80751.0,0.266056]
[1741901885602,0.00722134,80755.0,80751.0,0.261056]
[1741901885974,0.00722134,80755.0,80752.0,0.005]
[1741901886382,0.00722134,80755.0,80751.0,0.261056]
[1741901886577,0.00722134,80755.0,80751.0,0.266056]
[1741901887015,0.00722134,80755.0,80751.0,0.261056]
[1741901887198,0.00722134,80755.0,80752.0,0.265051]
[1741901887608,0.00722134,80755.0,80752.0,0.260051]
[1741901888060,0.00722134,80755.0,80752.0,0.261051]
[1741901889256,0.00722134,80755.0,80753.0,0.247667]
[1741901889398,0.00722134,80755.0,80752.0,0.261051]
[1741901889606,0.00722134,80755.0,80752.0,0.266051]
[1741901890285,0.00722134,80755.0,80752.0,0.265051]
[1741901890610,0.00722134,80755.0,80753.0,0.001]
[1741901891260,0.00722134,80755.0,80752.0,0.005]
[1741901891491,0.00722134,80755.0,80752.0,0.006]
[1741901891978,0.00722134,80755.0,80751.0,0.012383]
[1741901892358,0.00722134,80755.0,80753.0,0.006]
[1741901892557,0.00722134,80755.0,80753.0,0.001]
[1741901893637,0.00722134,80755.0,80753.0,0.005]
[1741901893840,0.00740385,80754.0,80753.0,0.005]
[1741901894026,0.24577871,80757.0,80753.0,0.005]
[1741901894252,0.00623533,80756.0,80753.0,0.005]
[1741901894412,0.01861733,80756.0,80753.0,0.005]
[1741901894608,0.26627833,80756.0,80753.0,0.005]
[1741901894822,0.26627833,80756.0,80753.0,0.006]
[1741901895222,0.26627833,80756.0,80753.0,0.001]
[1741901895398,0.01861733,80756.0,80753.0,0.005]
[1741901895599,0.00623533,80756.0,80754.0,0.012383]
[1741901896611,0.00623533,80756.0,80754.0,0.260048]
[1741901897216,0.00640423,80756.0,80754.0,0.265048]
[1741901899538,0.00640423,80756.0,80755.0,0.012383]
[1741901899767,0.00640423,80756.0,80755.0,0.095283]
[1741901899969,0.0001689,80756.0,80755.0,0.095283]
[1741901900802,0.0001689,80756.0,80755.0,0.100283]
[1741901901431,0.0001689,80756.0,80755.0,0.10152116]
[1741901901606,0.0001689,80756.0,80755.0,0.448983]
[1741901901831,0.0001689,80756.0,80755.0,0.452983]
[1741901902192,0.0001689,80756.0,80755.0,0.447983]
[1741901902399,0.0001689,80756.0,80755.0,0.453983]
[1741901903252,0.0001689,80756.0,80755.0,0.449983]
[1741901903473,0.0001689,80756.0,80755.0,0.453983]
[1741901903996,0.0001689,80756.0,80755.0,0.449983]
[1741901904417,0.0001689,80756.0,80755.0,0.453983]
[1741901907263,9e-07,80756.0,80755.0,0.453983]
[1741901907997,9e-07,80756.0,80755.0,0.449983]
[1741901908416,9e-07,80756.0,80755.0,0.443983]
[1741901908867,9e-07,80756.0,80755.0,0.449983]
[1741901909138,9e-07,80756.0,80755.0,0.443983]
[1741901909345,9e-07,80756.0,80755.0,0.449983]
[1741901909552,9e-07,80756.0,80755.0,0.453983]
[1741901909964,9e-07,80756.0,80755.0,0.47868351]
[1741901910231,9e-07,80756.0,80755.0,0.47468351]
[1741901910669,8e-07,80757.0,80756.0,0.686641]
[1741901912093,8e-07,80757.0,80756.0,0.692641]
[1741901913386,8e-07,80757.0,80756.0,0.70718185]
[1741901913599,8e-07,80757.0,80756.0,0.71318185]
[1741901914045,8e-07,80757.0,80756.0,0.76318185]
[1741901914245,8e-07,80757.0,80756.0,0.70718185]
[1741901914454,8e-07,80757.0,80756.0,0.75718185]
[1741901914661,8e-07,80757.0,80756.0,0.76318185]
[1741901914803,8e-07,80757.0,80756.0,0.75718185]
[1741901915011,8e-07,80757.0,80756.0,0.76318185]
[1741901915219,8e-07,80757.0,80756.0,0.75718185]
[1741901915444,6e-07,80776.0,80775.0,0.386681]
[1741901915645,4.199e-05,80776.0,80775.0,0.529201]
[1741901916904,4.199e-05,80776.0,80775.0,0.535201]
[1741901917105,4.199e-05,80776.0,80775.0,0.541201]
[1741901918980,4.199e-05,80776.0,80775.0,0.841201]
[1741901921055,4.199e-05,80776.0,80775.0,0.85574185]
[1741901921267,4.199e-05,80776.0,80775.0,0.98044284]
[1741901921475,4.199e-05,80776.0,80775.0,1.03044284]
[1741901922045,4.199e-05,80776.0,80775.0,1.02444284]
[1741901922633,4.199e-05,80776.0,80775.0,1.03044284]
[1741901923056,4.199e-05,80776.0,80775.0,1.02444284]
[1741901923258,4.199e-05,80776.0,80775.0,1.01844284]
[1741901923457,4.199e-05,80776.0,80775.0,1.02444284]
[1741901923636,4.199e-05,80776.0,80775.0,1.03044284]
[1741901924046,4.199e-05,80776.0,80775.0,1.02444284]
[1741901924239,4.199e-05,80776.0,80775.0,1.03044284]
[1741901925857,4.199e-05,80776.0,80775.0,1.16114284]
[1741901926761,4.199e-05,80776.0,80775.0,1.15514284]
[1741901927013,0.0001688,80811.0,80810.0,0.259868]
[1741901927254,0.00058294,80811.0,80810.0,0.402308]
[1741901928351,0.00058294,80811.0,80810.0,0.405308]
[1741901929197,0.00058294,80811.0,80810.0,0.411308]
[1741901929471,0.0806,80828.0,80810.0,0.411308]
[1741901929472,0.10502737,80824.0,80823.0,0.259826]
[1741901929686,0.10509399,80824.0,80823.0,0.259826]
[1741901929890,0.11062609,80824.0,80823.0,0.259826]
[1741901931160,0.10509399,80824.0,80823.0,0.259826]
[1741901931542,0.10509399,80824.0,80823.0,0.261826]
[1741901931746,0.10509399,80824.0,80823.0,0.264826]
[1741901932167,0.10509399,80824.0,80823.0,0.259826]
[1741901932369,0.10509399,80824.0,80823.0,0.265826]
[1741901933461,0.10509399,80824.0,80823.0,0.269826]
[1741901935986,0.01751518,80838.0,80837.0,0.259781]
[1741901936187,0.4095,80841.0,80840.0,0.01237]
[1741901936362,0.40956658,80841.0,80840.0,0.01237]
[1741901936504,0.40956658,80841.0,80840.0,0.259772]
[1741901937107,0.40956658,80841.0,80838.0,0.259778]
[1741901938300,0.40956658,80841.0,80839.0,0.259772]
[1741901938524,0.00610203,80840.0,80839.0,0.259772]
[1741901939754,0.00610203,80840.0,80838.0,0.003]
[1741901940135,0.00610203,80840.0,80835.0,0.01237]
[1741901940554,0.25350603,80840.0,80836.0,0.247411]
[1741901940763,0.03,80839.0,80836.0,0.247411]
[1741901940992,0.24742,80834.0,80829.0,0.1424]
[1741901941120,0.247429,80832.0,80827.0,0.259811]
[1741901941339,0.33002553,80833.0,80827.0,0.259811]
[1741901941542,0.323923,80833.0,80827.0,0.259811]
[1741901941766,0.323923,80833.0,80820.0,0.012373]
[1741901941767,0.012371,80830.0,80820.0,0.012373]
[1741901941966,0.0467,80830.0,80824.0,0.259821]
[1741901942171,0.0467,80830.0,80818.0,0.1424]
[1741901942172,0.247444,80827.0,80821.0,0.259832]
[1741901942372,0.247447,80826.0,80818.0,0.402241]
[1741901942548,0.247447,80826.0,80819.0,0.247463]
[1741901942747,0.0775,80824.0,80819.0,0.012373]
[1741901943030,0.247459,80822.0,80816.0,0.247473]
[1741901943231,0.00606197,80823.0,80817.0,0.012373]
[1741901943430,0.247462,80821.0,80816.0,0.247473]
[1741901944057,0.00606175,80820.0,80819.0,0.004]
[1741901944365,0.00606175,80820.0,80819.0,0.263839]
[1741901944565,0.337325,80824.0,80816.0,0.259846]
[1741901944764,0.00605406,80820.0,80816.0,0.259846]
[1741901944903,0.337325,80824.0,80820.0,0.012373]
[1741901944904,0.0775,80824.0,80820.0,0.012373]
[1741901945104,0.00605406,80823.0,80818.0,0.006]
[1741901945306,0.25350806,80823.0,80818.0,0.247467]
[1741901945533,0.25350806,80823.0,80819.0,0.006]
[1741901945732,0.25350806,80823.0,80819.0,0.018373]
[1741901945733,0.00605406,80823.0,80819.0,0.018373]
[1741901946147,0.00605406,80823.0,80817.0,0.012373]
[1741901946148,0.247457,80822.0,80817.0,0.012373]
[1741901946351,0.247462,80821.0,80816.0,0.259846]
[1741901946568,0.25351606,80821.0,80820.0,0.006]
[1741901946773,0.25351606,80821.0,80819.0,0.003]
[1741901946970,0.247465,80820.0,80815.0,0.012373]
[1741901947427,0.25352006,80819.0,80815.0,0.012373]
[1741901947561,0.00605406,80819.0,80815.0,0.259848]
[1741901947774,0.4095,80823.0,80817.0,0.012373]
[1741901948002,0.00605406,80818.0,80817.0,0.261843]
[1741901948174,0.247459,80822.0,80819.0,0.006]
[1741901948467,0.247459,80822.0,80817.0,0.014373]
[1741901948911,0.656956,80823.0,80818.0,0.012373]
[1741901949555,0.656956,80823.0,80819.0,0.006]
[1741901949761,0.656956,80823.0,80818.0,0.012373]
[1741901950187,0.656956,80823.0,80818.0,0.26584]
[1741901950393,0.4095,80823.0,80818.0,0.26784]
[1741901950978,0.656956,80823.0,80818.0,0.26784]
[1741901952352,0.247459,80822.0,80818.0,0.008]
[1741901953263,0.247459,80822.0,80818.0,0.002]
[1741901953409,0.00601395,80821.0,80817.0,0.259843]
[1741901953794,0.00601395,80821.0,80818.0,0.002]
[1741901954493,0.00601395,80821.0,80817.0,0.259843]
[1741901954901,0.00601395,80821.0,80819.0,0.247465]
[1741901955106,0.00601395,80821.0,80820.0,0.012373]
[1741901955308,0.4095,80823.0,80819.0,0.247465]
[1741901955506,0.00601395,80821.0,80819.0,0.247465]
[1741901955788,0.4095,80823.0,80819.0,0.247465]
[1741901955978,0.00601395,80820.0,80819.0,0.247465]
[1741901956199,0.4095,80823.0,80819.0,0.247465]
[1741901956402,0.00601395,80820.0,80819.0,0.247465]
[1741901956606,0.4095,80823.0,80819.0,0.253465]
[1741901956808,0.00601395,80820.0,80819.0,0.008]
[1741901957017,0.656956,80823.0,80819.0,0.008]
[1741901957221,0.00601395,80820.0,80819.0,0.0083374]
[1741901957421,0.00601395,80820.0,80819.0,0.0063374]
[1741901957625,0.656956,80823.0,80819.0,0.0063374]
[1741901957832,0.00601395,80820.0,80819.0,0.0093374]
[1741901958037,0.656956,80823.0,80819.0,0.0033374]
[1741901958246,0.00601395,80820.0,80819.0,0.0093374]
[1741901958457,0.656956,80823.0,80819.0,0.0093374]
[1741901958653,0.00601395,80820.0,80819.0,0.0033374]
[1741901958857,0.00601395,80820.0,80819.0,0.0217104]
[1741901959030,0.4095,80823.0,80819.0,0.0217104]
[1741901959031,0.4095,80823.0,80820.0,0.259836]
[1741901959264,0.4095,80823.0,80820.0,0.012373]
[1741901960224,0.4095,80823.0,80821.0,0.259831]
[1741901961643,0.4095,80828.0,80827.0,0.259814]
[1741901962672,0.4095,80828.0,80827.0,0.383114]
[1741901963325,0.4095,80828.0,80827.0,0.388114]
[1741901964146,0.4095,80828.0,80827.0,0.394114]
[1741901966865,1.5048,80836.0,80835.0,0.259787]
[1741901968378,1.5048,80836.0,80835.0,0.265787]
[1741901968585,1.5048,80836.0,80835.0,0.268787]
[1741901970524,0.4095,80836.0,80835.0,0.346187]
[1741901971535,0.4095,80836.0,80835.0,0.337187]
[1741901971918,0.4095,80836.0,80835.0,0.346187]
[1741901972138,0.4095,80836.0,80835.0,0.340187]
[1741901972337,0.4095,80836.0,80835.0,0.343187]
[1741901973282,0.4095,80836.0,80835.0,0.346187]
[1741901974312,0.0001687,80838.0,80837.0,0.259781]
[1741901975538,0.0001687,80838.0,80837.0,0.267781]
[1741901978402,0.0001687,80838.0,80837.0,0.316481]
[1741901980207,0.0001687,80838.0,80837.0,0.391881]
[1741901983951,0.0005387,80838.0,80837.0,0.391881]
[1741901988430,0.0005387,80838.0,80837.0,0.389881]
[1741901988650,0.0005387,80838.0,80837.0,0.394881]
[1741901988864,0.0005387,80838.0,80837.0,0.388881]
[1741901989067,0.0005387,80838.0,80837.0,0.394881]
[1741901993432,0.0005387,80838.0,80837.0,0.270781]
[1741901993613,0.0005387,80838.0,80837.0,0.2711188]
[1741902000594,0.0005387,80838.0,80837.0,0.0113378]
[1741902001019,0.4224087,80838.0,80837.0,0.0113378]
[1741902001255,0.4100387,80838.0,80837.0,0.0113378]
[1741902002292,0.4100387,80838.0,80837.0,0.0063378]